Cogmind - Beta 13 @@@ ROGUE MODE // 2024.04.09 @ 21:39:44 Player: graour Result: Destroyed by UC-I6Z(R) with Subdweller Laser Performance ------------- Evolutions (0) 0 Regions Visited (2) 400 Robots Destroyed (19) 95 Value Destroyed (540) 540 Prototype IDs (2) 40 Alien Tech Used (0) 0 Bonus (0) 0 TOTAL SCORE: 1075 Bonus ------- None Cogmind --------- Core Integrity 0/250 Matter 286/300 Energy 241/250 System Corruption 0% Temperature Cool (6) Movement Walking (120) Location -10/Subcaves Parts ------- > --- POWER (1) -------- Ion Engine > --- PROPULSION (2) --- Aluminum Leg Aluminum Leg > --- UTILITY (2) ------ Small Storage Unit Light Armor Plating > --- WEAPON (2) ------- Small Laser Subdweller Machine Gun > --- INVENTORY (8) ---- Ion Engine Ion Engine Aluminum Leg Aluminum Leg Disposable Heat Sink Medium Storage Unit EM Pulse Gun Welding Torch Peak State ------------ > --- POWER ------------ Light Ion Engine > --- PROPULSION ------- Flight Unit Flight Unit > --- UTILITY ---------- Small Storage Unit Visual Processing Unit > --- WEAPON ----------- EM Pulse Gun Small Laser > --- INVENTORY -------- Aluminum Leg Aluminum Leg Hover Unit Light Armor Plating [Rating: 8] Favorites ----------- Power Light Ion Engine Engine Light Ion Engine Propulsion Aluminum Leg Leg Aluminum Leg Wheel Compact Wheel Flight Unit Flight Unit Utility Light Armor Plating Storage Small Storage Unit Processor Visual Processing Unit Protection Light Armor Plating Weapon Medium Laser Energy Gun Medium Laser Ballistic Gun Subdweller Machine Gun Build | -11 -10 -10 ------- Run | Yrd Mat Sub Slots Evolved . | . . . Power . | . . . Propulsion . | . . . Utility . | . . . Weapon . | . . . Parts Attached 31 | 6 23 2 Power 3 | 1 2 . Engine 3 | 1 2 . Core . | . . . Reactor . | . . . Propulsion 11 | 2 9 . Treads . | . . . Leg 5 | . 5 . Wheel 2 | 2 . . Hover . | . . . Flight 4 | . 4 . Utility 10 | 1 9 . Device . | . . . Storage 5 | 1 4 . Processor 2 | . 2 . Hackware . | . . . Protection 3 | . 3 . Artifact . | . . . Weapon 7 | 2 3 2 Energy Gun 6 | 2 3 1 Energy Cannon . | . . . Ballistic Gun 1 | . . 1 Ballistic Cannon . | . . . Launcher . | . . . Special Weapon . | . . . Impact Weapon . | . . . Slashing Weapon . | . . . Piercing Weapon . | . . . Special Melee Weapon . | . . . Unidentified Prototypes . | . . . Parts Lost 5 | . 4 1 Power 1 | . 1 . Propulsion 3 | . 3 . Utility . | . . . Weapon 1 | . . 1 Highest Loss Streak 2 | . 2 1 To Critical Strikes . | . . . Average Slot Usage (%) 93 | . 91 100 Engine 13 | . 12 14 Leg 20 | . 18 28 Flight 6 | . 7 . Storage 4 | . 2 14 Processor 7 | . 8 . Protection 11 | . 10 14 Energy Gun 26 | . 28 18 Ballistic Gun 1 | . . 9 Naked Turns . | . . . Heaviest Build 18 | 10 17 18 Greatest Support 32 | 32 32 20 Greatest Overweight (x) 3 | . 3 . Average Overweight (x) . | . . . Largest Inventory Capacity 10 | 8 10 8 Average Capacity 6 | 6 5 8 Most Carried 8 | 6 8 8 Average Carried 5 | 3 4 7 Final Capacity 8 | 8 8 8 Final Carried 8 | 6 8 8 Class Distribution -------------------- 100% | Mutant Dominant Class ---------------- Mutant | -10/Materials Mutant | -10/Subcaves Resources | -11 -10 -10 ----------- Run | Yrd Mat Sub Matter Collected 480 | 228 242 10 Remotely . | . . . Salvage Created 816 | . 714 102 Parts 39 | . 31 8 Haulers Intercepted 2 | . 2 . Recyclers Shooed 1 | . 1 . Parts Field Recycled . | . . . Retrieved Matter . | . . . Parts Self-Destructed . | . . . Prevented . | . . . Kills | -11 -10 -10 ------- Run | Yrd Mat Sub Combat Hostiles Destroyed 13 | . 11 2 Guns 13 | . 11 2 Classes Destroyed 6 | . 5 1 Builder 1 | . 1 . Hauler 2 | . 2 . Recycler 1 | . 1 . Watcher 2 | . 2 . Grunt 11 | . 11 . Subdweller 2 | . . 2 Best Kill Streak 5 | . 5 2 Combat Bots Only 4 | . 4 2 Max Kills in Single Turn 1 | . 1 1 Gunslinging . | . . . Exploded . | . . . Melee . | . . . Uniques/NPCs Destroyed . | . . . Combat | -11 -10 -10 -------- Run | Yrd Mat Sub Hostile Shots Fired 89 | . 65 24 Missed 24 | . 15 9 Damage Taken 914 | . 596 318 Core 260 | . 196 64 Absorbed by Shields . | . . . Core Remaining (%) 100 | 100 . . Volleys Fired 68 | . 53 15 Largest 2 | . 2 2 Hottest 100 | . 100 100 Shots Fired 133 | . 103 30 Gun 133 | . 103 30 Cannon . | . . . Launcher . | . . . Special . | . . . Kinetic 2 | . . 2 Thermal 119 | . 91 28 Explosive . | . . . Electromagnetic 12 | . 12 . Robot Hit Streak 30 | . 9 30 Robot Miss Streak 2 | . 2 . Penetration Max . | . . . Secondary Targets 3 | . 3 . Max Gunslinging Chain 1 | . 1 . Shots Hit Robots 106 | . 77 29 Core Hits 38 | . 34 4 Critical Kills . | . . . Critical Parts Destroyed . | . . . Critical Strikes 4 | . 2 2 Burn 4 | . 2 2 Melee Attacks . | . . . Impact . | . . . Slashing . | . . . Piercing . | . . . Sneak Attacks . | . . . Combat Hostiles . | . . . Follow-up Attacks . | . . . Damage Inflicted 1258 | . 947 311 Guns 1256 | . 945 311 Cannons . | . . . Explosions . | . . . Melee . | . . . Ramming 2 | . 2 . Kinetic . | . . . Thermal 1144 | . 833 311 Explosive . | . . . Electromagnetic 112 | . 112 . Impact . | . . . Slashing . | . . . Piercing . | . . . Highest Corruption . | . . . Average Corruption . | . . . Corruption Purged . | . . . Corruption Blocked . | . . . Overload Shots . | . . . Overflow Damage . | . . . Projectiles . | . . . Explosions . | . . . Melee . | . . . Knockbacks . | . . . Impact . | . . . Kinetic . | . . . Secondary . | . . . Self-Inflicted Damage . | . . . Shots . | . . . Rammed . | . . . Targets Rammed 1 | . 1 . Kicked 1 | . 1 . Crushed . | . . . Highest Temperature 416 | . 416 2 Average Temperature 149 | . 151 2 Received Heat Transfer 396 | . 354 42 Effects 8 | . 8 . Shutdowns 2 | . 2 . Energy Bleed 3 | . 3 . Short Circuit 3 | . 3 . Siege Activations . | . . . Robots Corrupted . | . . . Combat Hostiles . | . . . Parts Fried . | . . . Impact Corruptions . | . . . Robots Melted . | . . . Combat Hostiles . | . . . Parts Melted 6 | . 4 2 Heat Transferred 3404 | . 2355 1049 Parts Sabotaged . | . . . Parts Stolen . | . . . Parts Stripped . | . . . Power Chain Reactions . | . . . Alert | -11 -10 -10 ------- Run | Yrd Mat Sub Peak Influence 263 | . 263 . Initial . | . . . Average 133 | . 146 . Maximum Alert Level 1 | . 1 . Low Security (%) 80 | 100 78 . Level 1 19 | . 21 . Level 2 . | . . . Level 3 . | . . . Level 4 . | . . . Level 5 . | . . . High Security . | . . . Max Security . | . . . Squads Dispatched 2 | . 2 . Investigation . | . . . Extermination . | . . . Reinforcement 2 | . 2 . Assault . | . . . Garrison . | . . . Intercept . | . . . Searches Triggered . | . . . Construction Impeded . | . . . Haulers Reinforced . | . . . Active Scanning Responses . | . . . Cargo Convoy Interrupts . | . . . Stealth | -11 -10 -10 --------- Run | Yrd Mat Sub Distress Signals . | . . . Communications Jammed . | . . . Distress Signals . | . . . Times Spotted 24 | . 21 3 Peak Tracking Total 5 | . 5 2 Tactical Retreats . | . . . Traps | -11 -10 -10 ------- Run | Yrd Mat Sub Traps Triggered . | . . . Indirectly . | . . . Trap Hack Attempts . | . . . Triggered . | . . . Disarmed . | . . . Reprogrammed . | . . . Reused . | . . . Traps Extracted . | . . . Installed . | . . . Triggered . | . . . Machines | -11 -10 -10 ---------- Run | Yrd Mat Sub Machines Disabled . | . . . Max in Single Turn . | . . . Machines Repaired . | . . . Machines Dismantled . | . . . Machines Sabotaged . | . . . Overloaded Fab Kills . | . . . Hacking | -11 -10 -10 --------- Run | Yrd Mat Sub Machines Accessed 3 | . 3 . Terminals 3 | . 3 . Fabricators . | . . . Repair Stations . | . . . Recycling Units . | . . . Scanalyzers . | . . . Garrison Access . | . . . Total Hacks 6 | . 6 . Successful 3 | . 3 . Failed 3 | . 3 . Catastrophic . | . . . Database Lockouts . | . . . Manual . | . . . Terminals 6 | . 6 . Fabricators . | . . . Repair Stations . | . . . Recycling Units . | . . . Scanalyzers . | . . . Garrison Access . | . . . Terminal Hacks 3 | . 3 . Robot Analysis 1 | . 1 . Prototype ID Bank 1 | . 1 . Maintenance Status 1 | . 1 . Fabricator Hacks . | . . . Repair Station Hacks . | . . . Recycling Unit Hacks . | . . . Scanalyzer . | . . . Garrison Access Hacks . | . . . Unauthorized Hacks . | . . . Terminals . | . . . Fabricators . | . . . Repair Stations . | . . . Recycling Units . | . . . Scanalyzers . | . . . Garrison Access . | . . . Data Cores Recovered . | . . . Used . | . . . Hacking Detections 3 | . 3 . Full Trace Events . | . . . Feedback Events . | . . . Feedback Blocked . | . . . Robot Schematics Acquired . | . . . Robots Built . | . . . Authchips . | . . . Time . | . . . Total Robot Build Rating . | . . . Part Schematics Acquired . | . . . Parts Built . | . . . Authchips . | . . . Time . | . . . Total Part Build Rating . | . . . Parts Repaired . | . . . Time . | . . . Parts Recycled . | . . . Recycled Matter . | . . . Retrieved Matter . | . . . Retrieved Components . | . . . Parts Scanalyzed . | . . . Part Schematics Acquired . | . . . Parts Damaged . | . . . Bothacking | -11 -10 -10 ------------ Run | Yrd Mat Sub Used RIF Installer . | . . . Robots Hacked . | . . . Non-combat . | . . . Combat . | . . . Robot Hacks Applied . | . . . Relay Couplers Released . | . . . Fabnet Peak Effective % . | . . . Robots Rewired . | . . . Allies Hacked . | . . . Hacks Repelled . | . . . Allies | -11 -10 -10 -------- Run | Yrd Mat Sub Total Allies . | . . . Largest Group . | . . . Highest-Rated Group . | . . . Highest-Rated Ally . | . . . Total Orders . | . . . Ally Attacks . | . . . Total Damage . | . . . Kills . | . . . Allies Corrupted . | . . . Allies Melted . | . . . Intel | -11 -10 -10 ------- Run | Yrd Mat Sub Robot Analysis Total 1 | . 1 . Derelict Logs Recovered . | . . . Drone Launches . | . . . Drone Recoveries . | . . . Exploration | -11 -10 -10 ------------- Run | Yrd Mat Sub Turns Passed 1049 | 73 801 175 Spaces Moved 711 | 61 550 100 Core 6 | 4 2 . Treads . | . . . Legs 415 | . 315 100 Wheels 76 | 57 19 . Hover . | . . . Flight 214 | . 214 . Fastest Speed 37 | 50 37 120 Average Speed 93 | 96 88 120 Slowest Speed 200 | 100 200 120 Overloaded Moves . | . . . Propulsion Burnouts . | . . . Robots Hopped . | . . . Cave-ins Triggered . | . . . Exploration Rate (%) 32 | 4 84 9 Regions Visited 2 Branch Regions 1 Pre-discovered Areas . | . . . Known Exits Taken . | . . . Unknown Exits Taken 2 | 1 1 . Scrap Searched . | . . . Spaces Dug . | . . . Terrain Destroyed . | . . . Melee . | . . . Projectile . | . . . AOE . | . . . Terrain Rammed . | . . . Walls Destroyed . | . . . Machines Disabled . | . . . Actions | -11 -10 -10 --------- Run | Yrd Mat Sub Total 961 | 72 761 128 Wait 113 | . 105 8 Move 709 | 60 549 100 Hop . | . . . Pick Up 18 | 6 10 2 Fast Attach 15 | 6 9 . Attach 7 | . 6 1 Detach 8 | . 8 . Swap 9 | . 8 1 Drop 13 | . 12 1 Fire 68 | . 53 15 Melee . | . . . Ram . | . . . Kick 1 | . 1 . Crush . | . . . Escape Stasis . | . . . Rewire . | . . . Trap . | . . . Miscellaneous . | . . . Route ------- -11/Scrapyard -10/Materials (discovered 5 exits: [*Mat x2] / [*Min x2] / [*Sub]) -10/Subcaves History --------- Turn | Location | Event 16 | -11/Scrapyard | Discovered new exit (range 16) 74 | -11/Scrapyard | Entered Materials 135 | -10/Materials | Discovered new exit (range 3) 135 | -10/Materials | Discovered new exit (range 14) 154 | -10/Materials | Discovered new exit (range 10) 198 | -10/Materials | Core integrity fell below 50% 332 | -10/Materials | Build established: Mutant 428 | -10/Materials | Discovered new exit (range 11) 857 | -10/Materials | Discovered new exit (range 5) 875 | -10/Materials | Entered Subcaves 896 | -10/Subcaves | Core integrity fell below 20% 973 | -10/Subcaves | A swath of the cavern ceiling suddenly collapsed 1039 | -10/Subcaves | Disturbed a concealed Subdweller 1050 | -10/Subcaves | Destroyed by UC-I6Z(R) with Subdweller Laser Last Messages --------------- 00919_ 27-62H(R) suffers critical hit (Burn). 00922_ 27-62H(R) destroyed. 00924_ Subatomizers dissect the Sub. Monowheel. 00927_ Med. Laser destroyed. 00932_ PM-QTL(R) suffers critical hit (Burn). 00932_ Sub. Optics melted. 00932_ Sub. Power Source melted. 00932_ PM-QTL(R) destroyed. 00935_ Acquired 10 matter. 00936_ Subatomizers dissect the Sub. Monowheel. 00938_ Acquired Sub. Machine Gun. 00941_ Dropped Med. Laser. 00942_ Acquired Disposable Heat Sink. 00951_ Subatomizers dissect the Sub. Monowheel. A swath of the cavern ceiling suddenly collapses. 01016_ K1-HL8(u) builds Twisted Machinery. 01039_ UC-I6Z(R) angrily emerges from the Twisted Machinery. Map ----- +----------------------------------------------------+ | ?????????????????????????????????????????????????? | | ?????????????????????????????????????????????????? | | ?????????????????????????????????????????????????? | | ?????????????????????????????????????????????????? | | ?????????????????????????????????????????????????? | | ?????????????????????????????????????????????????? | | ?????????????????????????????????????????????????? | | ?????????????????????????????????????????????????? | | ?????????????????????????????????????????????????? | | ?????????????????????????????????????????????????? | | ?????????????????????????????????????????????????? | | ?????????????????????????????????????????????????? | | ?????????????????????????????????????????????????? | | ?????????????????????????????????????????????????? | | ?????????????????????????????????????????????????? | | ?????????????????????????????????????????????????? | | ?????????????????????????????????????????????????? | | ?????????????????????????????????????????????????? | | ?????????????????????????????????????????????????? | | ?????????????????????????##?##???????????????????? | | ?????????????????????????# #$????????????????????? | | ?????????????????????????? ????????????????????? | | ??????????????????????????"&##???????????????????? | | ????????????????????????### $#???????????????????? | | ????????????????####????# # ###??????????????????? | | ?????????########""###?##@R < #??????????????????? | | ?????????# """ " ### #### #??????????? | | ?????????# "" " #???????????? | | ?????????# """"" # # ####???????????? | | ????????## """ #### # ##??????????????? | | ????????# """" ## # ##???????????????? | | ????????? """ "" #####????????????????? | | ????????? """ ##" ###### #???????????????????? | | ??????????"""??#" ##???## ##?????##????????????? | | ?????????? ???#" ###### ##??## ##???????????? | | ???????????????## # # #### #???????????? | | ???????????????# ## #????????????? | | ???????????????## #????????????? | | ????????????????# # # # ###???????????? | | ????????????????### ^####### ## #???????????? | | ?????????????###??# ????## #### #???????????? | | ????????????## #? #??## ### #???????????? | | ???????????? ^ ###### ## ##???????????? | | ????????????? ## ####??????????? | | ????????????? ## #""#"##?????????? | | ?????????????#^ ##### ## "#"#""#?????????? | | ?????????????# ##?# ########""###?????????? | | ?????????????# ??# #?????####"##?????????? | | ?????????????# ??# ####????#"###?????????? | | ????????????## #??#### #????### #?????????? | +----------------------------------------------------+ Best States ------------- Heat Dissipation 25 Energy Generation 10 Energy Capacity 250 Matter Stores 300 Matter Capacity 300 Sight Range 18 Terrain Scan Density 10 Armor Coverage 150 Evasion (%) 62 Item Schematics ----------------- None Robot Schematics ------------------ None Fabricated ------------ Nothing Alien Tech Used ----------------- None Achievements -------------- None Challenges ------------ None Game ------ Seed OpticalOpticalAxe Manual? 0 Play Time 00:14:33 Cumulative 19.2 hours Start 2024.04.09 @ 21:26:00 End 2024.04.09 @ 21:39:44 Sessions 1 Manual Loads 0 Difficulty Rogue Special Mode None Game No. 37 Rogue 37 Adventurer 0 Explorer 0 Win Type - Total 0 Types 0/0/0/0/0/0/0/0/0 Lore% 18 Gallery% 28 Achievement% 21 Wizard Run 0 Options --------- Layout 1 ASCII 0 Keyboard 1 Movement Arrows Keybinds 0 Fullscreen 1 Font 24/Smallcaps Map View 50x35 Zoom Use 0% Tactical HUD 1 Map Filters NONE Filters NONE Steam 1 RUN: 2809e65d-0510-4e44-a696-cfebd4a08ee0